Cogmind - Beta 10.2 @@@ ROGUE MODE // 2021.10.17 @ 01:57:13 Player: Wakanaka Result: Self-destructed Performance ------------- Evolutions (2) 1000 Regions Visited (4) 800 Robots Destroyed (42) 210 Value Destroyed (772) 772 Prototype IDs (3) 60 Alien Tech Used (0) 0 Bonus (0) 0 TOTAL SCORE: 2842 Bonus ------- None Cogmind --------- Core Integrity 362/550 Matter 354/450 Energy 275/275 System Corruption 0% Temperature Cool (0) Movement Rolling (110) Ox3 Location -8/Materials Parts ------- > --- POWER (1) -------- Deuterium Engine > --- PROPULSION (2) --- Wheel > --- UTILITY (6) ------ Large Storage Unit Compact Matter Pod Sensor Array Advanced Terrain Scanner Seismic Analyzer Light Armor Plating > --- WEAPON (2) ------- Improved Assault Rifle > --- INVENTORY (10) --- Light Ion Engine Deuterium Engine Heat Sink Integration Mediator Shotgun Shock Bomb Launcher Mini Grenade Launcher Peak State ------------ > --- POWER ------------ Heavy Ion Engine > --- PROPULSION ------- Wheel Wheel > --- UTILITY ---------- Large Storage Unit Compact Matter Pod Sensor Array Advanced Terrain Scanner Seismic Analyzer ECM Suite > --- WEAPON ----------- Improved Assault Rifle Improved Assault Rifle > --- INVENTORY -------- Light Ion Engine Heat Sink Advanced Terrain Scanner Light Armor Plating Integration Mediator Heavy Particle Cannon Shotgun Missile Launcher [Rating: 22] Favorites ----------- Power Ion Engine Engine Ion Engine Propulsion Wheel Wheel Wheel Utility Seismic Analyzer Device Improved Terrain Scanner Storage Large Storage Unit Processor Seismic Analyzer Protection Light Armor Plating Weapon Improved Assault Rifle Energy Gun Small Laser Energy Cannon Heavy Particle Cannon Ballistic Gun Improved Assault Rifle Launcher Missile Launcher Build | -11 -10 -10 -9 -8 ------- Run | Scr Mat Min Mat Mat Slots Evolved 4 | . . . 2 2 Power . | . . . . . Propulsion . | . . . . . Utility 4 | . . . 2 2 Weapon . | . . . . . Parts Attached 35 | 9 1 . 14 11 Power 5 | 1 . . 3 1 Engine 5 | 1 . . 3 1 Core . | . . . . . Reactor . | . . . . . Propulsion 10 | 3 1 . 4 2 Treads . | . . . . . Leg . | . . . . . Wheel 10 | 3 1 . 4 2 Hover . | . . . . . Flight . | . . . . . Utility 10 | 3 . . 3 4 Device 5 | 1 . . 2 2 Storage 3 | 1 . . 1 1 Processor 1 | 1 . . . . Hackware . | . . . . . Protection 1 | . . . . 1 Artifact . | . . . . . Weapon 10 | 2 . . 4 4 Energy Gun 1 | 1 . . . . Energy Cannon 1 | . . . . 1 Ballistic Gun 7 | 1 . . 4 2 Ballistic Cannon . | . . . . . Launcher 1 | . . . . 1 Special Weapon . | . . . . . Impact Weapon . | . . . . . Slashing Weapon . | . . . . . Piercing Weapon . | . . . . . Special Melee Weapon . | . . . . . Unidentified Prototypes . | . . . . . Parts Lost 13 | . . . 5 8 Power 1 | . . . 1 . Propulsion 4 | . . . 1 3 Utility 3 | . . . 1 2 Weapon 5 | . . . 2 3 Highest Loss Streak 3 | . . . 2 3 Average Slot Usage (%) 96 | . 100 100 95 90 Engine 11 | . 14 14 10 8 Wheel 22 | . 28 28 21 12 Device 19 | . 14 14 21 23 Storage 8 | . . . 11 18 Processor 11 | . 14 14 11 9 Energy Gun 5 | . 14 14 1 . Ballistic Gun 15 | . 14 14 17 16 Naked Turns . | . . . . . Heaviest Build 40 | 12 9 9 32 40 Greatest Support 32 | 32 20 20 20 20 Greatest Overweight (x) 10 | . . . 3 10 Average Overweight (x) . | . . . 1 2 Largest Inventory Capacity 10 | 6 4 4 10 10 Average Capacity 7 | 4 4 4 10 10 Most Carried 10 | 4 4 4 10 10 Average Carried 5 | 1 2 4 7 8 Final Capacity 10 | 4 4 4 10 10 Final Carried 10 | 3 4 4 10 7 Class Distribution -------------------- 71% | Scavenger-Mutant 16% | Skirmisher 10% | Mutant Dominant Class ---------------- Scavenger-Mutant | -10/Materials Scavenger-Mutant | -10/Mines Scavenger-Mutant | -9/Materials Skirmisher | -8/Materials Resources | -11 -10 -10 -9 -8 ----------- Run | Scr Mat Min Mat Mat Matter Collected 1262 | 317 43 108 550 244 Remotely . | . . . . . Salvage Created 1074 | 150 64 95 277 488 Parts 81 | 18 7 7 26 23 Haulers Intercepted 1 | . . . 1 . Recyclers Shooed . | . . . . . Parts Field Recycled . | . . . . . Retrieved Matter . | . . . . . Parts Self-Destructed . | . . . . . Prevented . | . . . . . Kills | -11 -10 -10 -9 -8 ------- Run | Scr Mat Min Mat Mat Combat Hostiles Destroyed 25 | . 3 6 5 11 Guns 21 | . 3 6 5 7 AOE 4 | . . . . 4 Classes Destroyed 10 | 2 2 . 4 2 Worker 7 | . . . 1 6 Tunneler 6 | 5 . . 1 . Hauler 1 | . . . 1 . Recycler 1 | 1 . . . . Watcher 2 | . 1 . 1 . Swarmer 13 | . 3 6 2 2 Grunt 7 | . . . 1 6 Duelist 1 | . . . . 1 Sentry 3 | . . . 2 1 Hunter 1 | . . . . 1 Best Kill Streak 8 | 4 4 3 3 8 Combat Bots Only 7 | . 3 3 2 7 Max Kills in Single Turn 2 | 1 1 1 1 2 Gunslinging . | . . . . . Exploded 2 | . . . . 2 Melee . | . . . . . Uniques/NPCs Destroyed . | . . . . . Combat | -11 -10 -10 -9 -8 -------- Run | Scr Mat Min Mat Mat Damage Taken 1509 | . 115 146 339 909 Core 330 | . 26 44 72 188 Absorbed by Shields . | . . . . . Core Remaining (%) 84 | 100 . 72 82 . Volleys Fired 109 | 11 13 10 36 39 Largest 2 | 2 2 2 2 2 Hottest 111 | 60 60 60 60 111 Shots Fired 208 | 22 26 20 66 74 Gun 196 | 22 26 20 66 62 Cannon 6 | . . . . 6 Launcher 6 | . . . . 6 Special . | . . . . . Kinetic 157 | 11 13 10 61 62 Thermal 45 | 11 13 10 5 6 Explosive 6 | . . . . 6 Electromagnetic . | . . . . . Robot Hit Streak 8 | 6 4 3 8 8 Robot Miss Streak 5 | 3 3 3 2 5 Penetration Max . | . . . . . Secondary Targets 5 | . 1 2 1 1 Max Gunslinging Chain 1 | . 1 1 1 1 Shots Hit Robots 118 | 12 13 11 37 45 Core Hits 62 | 7 5 6 14 30 Critical Hits 2 | 1 . . . 1 Critical Kills 1 | . . . . 1 Critical Parts Destroyed 1 | 1 . . . . Melee Attacks . | . . . . . Impact . | . . . . . Slashing . | . . . . . Piercing . | . . . . . Sneak Attacks . | . . . . . Combat Hostiles . | . . . . . Follow-up Attacks . | . . . . . Damage Inflicted 2060 | 148 187 136 456 1133 Guns 1493 | 148 187 136 456 566 Cannons 100 | . . . . 100 Explosions 467 | . . . . 467 Melee . | . . . . . Ramming . | . . . . . Kinetic 1223 | 69 98 58 432 566 Thermal 370 | 79 89 78 24 100 Explosive 467 | . . . . 467 Electromagnetic . | . . . . . Impact . | . . . . . Slashing . | . . . . . Piercing . | . . . . . Highest Corruption . | . . . . . Average Corruption . | . . . . . Corruption Purged . | . . . . . Overload Shots . | . . . . . Overflow Damage 28 | . . . . 28 Projectiles . | . . . . . Explosions 28 | . . . . 28 Melee . | . . . . . Knockbacks . | . . . . . Impact . | . . . . . Kinetic . | . . . . . Secondary . | . . . . . Self-Inflicted Damage . | . . . . . Shots . | . . . . . Rammed . | . . . . . Targets Rammed . | . . . . . Kicked . | . . . . . Crushed . | . . . . . Highest Temperature 287 | . 20 . 2 287 Average Temperature 117 | . 20 . 2 144 Received Heat Transfer 375 | . . . 87 288 Siege Activations . | . . . . . Robots Corrupted . | . . . . . Combat Hostiles . | . . . . . Parts Fried . | . . . . . Impact Corruptions . | . . . . . Robots Melted . | . . . . . Combat Hostiles . | . . . . . Parts Melted . | . . . . . Heat Transferred 748 | 175 200 175 50 148 Parts Sabotaged . | . . . . . Parts Stolen . | . . . . . Parts Stripped . | . . . . . Power Chain Reactions . | . . . . . Missiles Intercepted . | . . . . . Alert | -11 -10 -10 -9 -8 ------- Run | Scr Mat Min Mat Mat Peak Influence 296 | 30 155 130 102 296 Initial 60 | . 19 60 27 20 Average 62 | 13 45 69 41 118 Maximum Alert Level 1 | . . . . 1 Low Security (%) 93 | 100 100 100 100 69 Level 1 6 | . . . . 30 Level 2 . | . . . . . Level 3 . | . . . . . Level 4 . | . . . . . Level 5 . | . . . . . High Security . | . . . . . Max Security . | . . . . . Squads Dispatched 2 | . . . 1 1 Investigation . | . . . . . Extermination . | . . . . . Reinforcement 2 | . . . 1 1 Assault . | . . . . . Garrison . | . . . . . Intercept . | . . . . . Construction Impeded 1 | . . . . 1 Haulers Reinforced . | . . . . . Stealth | -11 -10 -10 -9 -8 --------- Run | Scr Mat Min Mat Mat Distress Signals 7 | . . . 4 3 Communications Jammed . | . . . . . Distress Signals . | . . . . . Times Spotted 46 | . 8 6 16 16 Peak Tracking Total 6 | . 5 3 5 6 Tactical Retreats 3 | . 1 . 1 1 Traps | -11 -10 -10 -9 -8 ------- Run | Scr Mat Min Mat Mat Traps Triggered . | . . . . . Indirectly . | . . . . . Trap Hack Attempts . | . . . . . Triggered . | . . . . . Disarmed . | . . . . . Reprogrammed . | . . . . . Reused . | . . . . . Traps Extracted . | . . . . . Installed . | . . . . . Triggered . | . . . . . Machines | -11 -10 -10 -9 -8 ---------- Run | Scr Mat Min Mat Mat Machines Disabled . | . . . . . Max in Single Turn . | . . . . . Machines Sabotaged . | . . . . . Garrisons Compromised . | . . . . . Overloaded Fab Kills . | . . . . . Fab Network Shutdowns . | . . . . . Hacking | -11 -10 -10 -9 -8 --------- Run | Scr Mat Min Mat Mat Machines Accessed 5 | . 1 1 2 1 Terminals 3 | . 1 . 1 1 Fabricators . | . . . . . Repair Stations . | . . . . . Recycling Units 1 | . . . 1 . Scanalyzers . | . . . . . Garrison Access . | . . . . . Total Hacks 6 | . 1 1 3 1 Successful 5 | . 1 1 3 . Failed 1 | . . . . 1 Catastrophic . | . . . . . Database Lockouts . | . . . . . Manual . | . . . . . Terminals 4 | . 1 . 2 1 Fabricators . | . . . . . Repair Stations . | . . . . . Recycling Units 1 | . . . 1 . Scanalyzers . | . . . . . Garrison Access . | . . . . . Terminal Hacks 4 | . 1 1 2 . Record 1 | . . . 1 . Prototype ID Bank 1 | . 1 . . . Open Door 1 | . . 1 . . Unreport Threat 1 | . . . 1 . Fabricator Hacks . | . . . . . Repair Station Hacks . | . . . . . Recycling Unit Hacks 1 | . . . 1 . Report Inventory 1 | . . . 1 . Scanalyzer . | . . . . . Garrison Access Hacks . | . . . . . Unauthorized Hacks . | . . . . . Terminals . | . . . . . Fabricators . | . . . . . Repair Stations . | . . . . . Recycling Units . | . . . . . Scanalyzers . | . . . . . Garrison Access . | . . . . . Data Cores Recovered . | . . . . . Used . | . . . . . Hacking Detections 2 | . . . 1 1 Full Trace Events . | . . . . . Feedback Events . | . . . . . Feedback Blocked . | . . . . . Robot Schematics Acquired . | . . . . . Robots Built . | . . . . . Matter . | . . . . . Time . | . . . . . Total Robot Build Rating . | . . . . . Part Schematics Acquired . | . . . . . Parts Built . | . . . . . Matter . | . . . . . Time . | . . . . . Total Part Build Rating . | . . . . . Parts Repaired . | . . . . . Time . | . . . . . Parts Recycled . | . . . . . Recycled Matter . | . . . . . Retrieved Matter . | . . . . . Retrieved Components . | . . . . . Parts Scanalyzed . | . . . . . Part Schematics Acquired . | . . . . . Parts Damaged . | . . . . . Bothacking | -11 -10 -10 -9 -8 ------------ Run | Scr Mat Min Mat Mat Used RIF Installer . | . . . . . Robots Hacked . | . . . . . Non-combat . | . . . . . Combat . | . . . . . Robot Hacks Applied . | . . . . . Relay Couplers Released . | . . . . . Robots Rewired . | . . . . . Allies Hacked . | . . . . . Hacks Repelled . | . . . . . Allies | -11 -10 -10 -9 -8 -------- Run | Scr Mat Min Mat Mat Total Allies . | . . . . . Largest Group . | . . . . . Highest-Rated Group . | . . . . . Highest-Rated Ally . | . . . . . Total Orders . | . . . . . Ally Attacks . | . . . . . Total Damage . | . . . . . Kills . | . . . . . Allies Corrupted . | . . . . . Allies Melted . | . . . . . Intel | -11 -10 -10 -9 -8 ------- Run | Scr Mat Min Mat Mat Robot Analysis Total . | . . . . . Derelict Logs Recovered 1 | . . 1 . . Drone Launches . | . . . . . Drone Recoveries . | . . . . . Exploration | -11 -10 -10 -9 -8 ------------- Run | Scr Mat Min Mat Mat Turns Passed 2397 | 106 377 477 930 507 Spaces Moved 1109 | 58 185 247 472 147 Core 8 | 1 . . . 7 Treads . | . . . . . Legs . | . . . . . Wheels 1101 | 57 185 247 472 140 Hover . | . . . . . Flight . | . . . . . Fastest Speed 50 | 50 80 80 80 90 Average Speed 90 | 88 80 80 91 118 Slowest Speed 550 | 100 80 80 110 550 Overloaded Moves . | . . . . . Propulsion Burnouts . | . . . . . Robots Hopped . | . . . . . Cave-ins Triggered . | . . . . . Exploration Rate (%) 28 | 4 38 61 28 13 Regions Visited 4 Branch Regions 1 Pre-discovered Areas 1 | . . 1 . . Known Exits Taken . | . . . . . Unknown Exits Taken 4 | 1 1 1 1 . Scrap Searched 2 | . . 2 . . Spaces Dug . | . . . . . Terrain Destroyed 53 | . . . . 53 Melee . | . . . . . Projectile 2 | . . . . 2 AOE 51 | . . . . 51 Terrain Rammed . | . . . . . Walls Destroyed . | . . . . . Machines Disabled . | . . . . . Actions | -11 -10 -10 -9 -8 --------- Run | Scr Mat Min Mat Mat Total 2299 | 91 388 506 910 404 Wait 993 | . 184 250 359 200 Move 1105 | 57 184 246 471 147 Hop . | . . . . . Pick Up 42 | 11 4 . 21 6 Fast Attach 1 | . . . 1 . Attach 30 | 8 1 . 12 9 Detach 1 | 1 . . . . Swap 4 | 1 . . 1 2 Drop 14 | 2 2 . 9 1 Fire 109 | 11 13 10 36 39 Melee . | . . . . . Ram . | . . . . . Kick . | . . . . . Crush . | . . . . . Escape Stasis . | . . . . . Rewire . | . . . . . Trap . | . . . . . Miscellaneous . | . . . . . Route ------- -11/Scrapyard -10/Materials (discovered 2 exits: *Min x2) -10/Mines -9/Materials (discovered 2 exits: *Mat / [*Min]) -8/Materials History --------- Turn | Location | Event 20 | -11/Scrapyard | Discovered new exit (range 15) 107 | -11/Scrapyard | Entered Materials 117 | -10/Materials | Discovered new exit (range 16) 308 | -10/Materials | Build established: Scavenger-Mutant 460 | -10/Materials | Discovered new exit (range 7) 484 | -10/Materials | Entered Mines 908 | -10/Mines | Discovered new exit (range 15) 912 | -10/Mines | Met a Derelict who couldn't figure out how to use a Trap Extractor 961 | -10/Mines | Entered Materials 961 | -9/Materials | Evolved 2 slots: Utility x2 1188 | -9/Materials | Discovered new exit (range 13) 1712 | -9/Materials | Discovered new exit (range 5) 1891 | -9/Materials | Entered another Materials area 1891 | -8/Materials | Evolved 2 slots: Utility x2 2180 | -8/Materials | Lost 3 parts (1n2w) 2181 | -8/Materials | Destroyed 7 combat bots 2206 | -8/Materials | Build established: Skirmisher 2331 | -8/Materials | Lost 3 parts (1n2u) 2398 | -8/Materials | Self-destructed Last Messages --------------- 02340_ K-01 Serf collects debris. 02340_ K-01 Serf destroyed. 02350_ K-01 Serf collects debris. 02354_ Acquired Wheel. 02355_ W-25 Informer sends out distress signal. 02358_ K-01 Serf collects debris. 02359_ K-01 Serf destroyed. 02363_ Acquired Wheel. 02373_ G-47 Trooper destroyed. 02374_ U-05 Engineer lays Concrete. 02381_ Acquired 60 matter. 02383_ W-25 Informer sends out distress signal. 02386_ K-01 Serf collects debris. 02388_ Imp. Assault Rifle destroyed. 02392_ K-01 Serf collects debris. 02392_ S-10 Pest destroyed. 02394_ K-01 Serf collects debris. 02396_ R-06 Scavenger collects Lgt. Ion Engine. 02397_ K-01 Serf collects debris. 02398_ Wheel destroyed. Map ----- +----------------------------------------------------+ | ?????????????????????????????????????????????????? | | ?????????????????????????????????????????????????? | | ?????????????????????????????????????????????????? | | ?????????????????????????????????????????????????? | | ?????????????????????????????????????????????????? | | ?????????????????????????????????????????????????? | | ?????????????????????????"???????????????????????? | | ?????????????????????????"???????????????????? ??? | | ??????????????????????#??? ??????? ?????????????? | | ?????????????????????????? ?????????????????#????? | | ?????????????????????????? ???? ? ??????? ?? ????? | | ???????????????????????#?????????????#???"???????? | | ????????????? ?? ? ? ??#????#?#????????"""???" ??? | | ?????????????????????#???#??????# #?#?"?? ??" ?? | | ???????????????????????????##???# #?? ? ? ? ? ??? | | ???????????????#? ?? ????????### ??# ? ??? # | | ???????????????#?????? ???#?#?#?# ?##? ????? ??? | | ????????????????#??????? ?##??### ?+ ? #? | | ??????????????##??????????#?##??# ##?##??##?#???#? | | ????????????????? ??????? #?##### ############?### | | ????????? ??#????# ? ##? ####?## #?##?######?#### | | ?????? ??????????# ??##???##?#?# ### ## # ####### | | ?????????????????# ############ ########### | | ???????? ?#??????# # # | | ??????????????#??# % # # | | ?????????????? ??# @ ### | | ??????????????? ?# k # | | ???????????#?????# =*w ! % + | | ???????????#? ?? #s=[% %* #! [ | | ?????????#?#?????# [%#####+#####k # = | | ???????????+??? # ??# ##r ######### ## | | ???????????#??? ?# ## ##%* # * # | | ?????????????#??## ???# * ? ##% # * # | | ??????? ? ???????? ? ## ##% !+ # ] | | ??????????????? ?? ??## ##! # # ] | | ??????????????? ?? ?# ?##% ######## ] | | ?????????"??????? ???# ?# ######## | | ???????????????????? ## ?# ###### | | ??????????????? ?## # ! | | ?????????????????? ??#######+## | | ???????????????? ? ????#???? ## | | ?????????????? ??? ???##?##?## ############# | | ??????????????????? ????###?# #############?###### | | ????????????????? ????##?#??? ##############??#### | | ??????????????????????#?????# #####?##?####?###### | | ???????????????????????????##??#?##?###?##?####### | | ??????????????????????? ?#????#?#??##########??### | | ??????????????????????????##? ??##??#??#?######### | | ?????????????????????? ?#??# ??##?##?#########?## | | ??????????????????????? ????????##??###?####?####? | +----------------------------------------------------+ Best States ------------- Heat Dissipation 31 Energy Generation 14 Energy Capacity 280 Matter Stores 450 Matter Capacity 450 Sight Range 16 Robot Scan Range 10 Terrain Scan Range 20 Terrain Scan Density 60 ECM Strength 1 Armor Coverage 150 Evasion (%) 44 Item Schematics ----------------- None Robot Schematics ------------------ None Fabricated ------------ Nothing Alien Tech Used ----------------- None Achievements -------------- None Challenges ------------ None Game ------ Seed DispersionShadeMapper Manual? 0 Play Time 00:27:05 Cumulative 26.1 hours Start 2021.10.17 @ 01:30:56 End 2021.10.17 @ 01:57:13 Sessions 1 Manual Loads 0 Difficulty Rogue Special Mode None Game No. 29 Rogue 29 Adventurer 0 Explorer 0 Win Type - Total 0 Types 0/0/0/0/0/0/0/0/0 Lore% 21 Gallery% 29 Achievement% 21 Wizard Run 0 Options --------- ASCII 0 Keyboard 0 Movement Mouse Keybinds 0 Fullscreen 1 Font 18/SmallcapsGlow Map View 76x50 Tactical HUD 1 Map Filters NONE Filters NONE Steam 1 RUN: ec387305-e9c5-476c-bb50-b131e5d9d78c